bitfinex/quotes_ETHUSD_20220305
["timestamp","ask_amount","ask_price","bid_price","bid_amount"]
[1646441688751,1.06273739,2608.2,2607.6,0.00149562]
[1646441688955,1.06273739,2608.2,2607.9,0.00167959]
[1646441689854,1.06273739,2608.2,2607.6,0.00149562]
[1646441690054,1.06273739,2608.2,2607.5,0.18951272]
[1646441690258,1.06273739,2608.2,2607.9,0.00167956]
[1646441691055,1.06273739,2608.2,2607.6,0.00149562]
[1646441691255,1.06273739,2608.2,2607.9,0.00167956]
[1646441692255,1.06273739,2608.2,2607.6,0.00149562]
[1646441692508,1.06273739,2608.2,2607.9,0.0014948]
[1646441693309,1.06273739,2608.2,2607.6,0.00149562]
[1646441693511,1.06273739,2608.2,2607.5,0.18951272]
[1646441693711,1.06273739,2608.2,2607.9,0.0014948]
[1646441694114,1.04450831,2608.2,2607.9,0.0014948]
[1646441694714,1.04450831,2608.2,2607.6,0.00149562]
[1646441694915,1.04450831,2608.2,2607.9,0.0014948]
[1646441695917,1.04450831,2608.2,2607.6,0.00149562]
[1646441696118,1.04450831,2608.2,2607.9,0.00151139]
[1646441696954,1.04450831,2608.2,2607.6,0.00149562]
[1646441697155,1.04450831,2608.2,2607.5,0.18951272]
[1646441697355,1.04450831,2608.2,2607.9,0.00151139]
[1646441698162,1.04450831,2608.2,2607.2,0.19100834]
[1646441698356,1.04450831,2608.2,2607.3,0.19100834]
[1646441698556,1.04450831,2608.2,2607.9,0.00151139]
[1646441699561,1.04450831,2608.2,2607.5,0.00149562]
[1646441699763,1.04450831,2608.2,2607.9,0.0013395]
[1646441700003,0.99450831,2608.2,2607.9,0.0013395]
[1646441700605,0.99450831,2608.2,2607.5,0.00149562]
[1646441700807,0.5071463,2608.5,2607.6,0.90960932]
[1646441701009,0.5071463,2608.5,2607.9,0.0013395]
[1646441701010,1.36061665,2608.4,2607.9,0.0013395]
[1646441701206,0.03122541,2608.2,2607.9,0.0013395]
[1646441701804,0.03122541,2608.2,2607.8,0.18951272]
[1646441702005,0.03122541,2608.2,2608.1,0.92006311]
[1646441702206,0.03122541,2608.2,2608.1,1.10957583]
[1646441702406,0.03122541,2608.2,2608.1,0.92006311]
[1646441702605,0.03122541,2608.2,2608.1,1.10958358]
[1646441703408,0.02362959,2608.2,2608.1,1.10958358]
[1646441705453,0.02362959,2608.2,2608.1,0.18952047]
[1646441705855,0.02362959,2608.2,2608.0,0.00137812]
[1646441706061,0.02362959,2608.2,2608.0,0.1910909]
[1646441706255,0.02362959,2608.2,2608.0,0.00137812]
[1646441706655,0.02362959,2608.2,2607.8,0.9347473]
[1646441706862,0.02362959,2608.2,2607.9,3.68972231]
[1646441707058,0.02362959,2608.2,2608.0,0.19109175]
[1646441707507,0.02362959,2608.2,2608.1,0.9589]
[1646441707710,0.02362959,2608.2,2608.1,5.03052231]
[1646441707910,0.01865847,2608.2,2608.1,1.53052231]
[1646441708112,0.01865847,2608.2,2608.1,3.23263758]
[1646441708309,0.01865847,2608.2,2608.1,2.23263758]
[1646441708512,0.01865847,2608.2,2608.1,3.23263758]
[1646441708712,0.01865847,2608.2,2608.1,2.23263758]
[1646441709115,0.0010463,2608.5,2608.3,2.29935]
[1646441709317,0.0010463,2608.5,2608.4,1.53032231]
[1646441711359,0.0010463,2608.5,2608.4,1.14842231]
[1646441711958,0.0010463,2608.5,2608.4,1.72520162]
[1646441712155,0.0010463,2608.5,2608.4,0.76650162]
[1646441713764,0.0010463,2608.5,2608.4,0.18972231]
[1646441713968,0.0010463,2608.5,2608.3,0.18972231]
[1646441714167,0.0010463,2608.5,2608.3,0.19109309]
[1646441714364,0.0010463,2608.5,2608.4,0.18972231]
[1646441714563,0.0010463,2608.5,2608.3,0.00137078]
[1646441714766,1.12228622,2608.5,2608.3,0.00137078]
[1646441715210,1.12228622,2608.5,2608.1,0.18972231]
[1646441715407,1.12228622,2608.5,2608.3,0.0013708]
[1646441715609,1.07228622,2608.5,2608.3,0.0013708]
[1646441716409,1.07228622,2608.5,2608.0,0.18967138]
[1646441716611,1.07228622,2608.5,2608.3,0.0013708]
[1646441717309,12.67365571,2609.2,2608.3,0.0013708]
[1646441717509,1.36176132,2609.1,2608.0,0.18967138]
[1646441717708,2.25251703,2609.1,2608.3,0.0013709]
[1646441717909,1.36176132,2609.0,2608.3,0.0013709]
[1646441718309,1.36176132,2608.9,2608.3,0.0013709]
[1646441718610,1.36176132,2608.8,2608.0,0.18967138]
[1646441718860,1.06034823,2608.2,2608.1,0.18967138]
[1646441719062,1.06034823,2608.2,2607.9,0.18967138]
[1646441719460,4.45913,2609.0,2607.9,0.18967138]
[1646441719660,1.3629219,2608.9,2607.9,1.24462138]
[1646441719863,1.3629219,2608.9,2608.0,0.18967138]
[1646441720061,1.3629219,2608.9,2608.3,0.00137088]
[1646441720462,0.97734842,2608.6,2608.3,0.00137088]
[1646441721062,0.97734842,2608.6,2608.0,0.18967138]
[1646441721263,0.97734842,2608.6,2608.3,0.00137428]
[1646441722263,0.97734842,2608.6,2608.1,0.18967138]
[1646441722503,0.97734842,2608.6,2608.3,0.00137428]
[1646441723505,0.97734842,2608.6,2608.2,0.18967138]
[1646441723911,0.97734842,2608.6,2608.3,0.00137428]
[1646441724616,0.97734842,2608.6,2608.2,0.18967138]
[1646441725114,0.97734842,2608.6,2608.3,0.00137009]
[1646441727158,0.97734842,2608.6,2608.2,0.18967138]
[1646441727362,15.16,2609.1,2608.3,0.00137009]
[1646441727559,1.36316119,2609.0,2608.3,0.00137009]
[1646441728262,11.66,2608.8,2608.2,0.18967138]
[1646441728462,1.36316119,2608.7,2608.3,0.18967138]
[1646441728663,1.36316119,2608.6,2608.4,0.19104239]
[1646441728864,11.66,2608.9,2608.4,0.19104239]
[1646441728865,1.36275196,2608.5,2608.4,0.00137101]
[1646441729065,1.36275196,2608.8,2608.4,0.00137101]
[1646441729265,1.36275196,2608.7,2608.4,0.00137101]
[1646441729465,1.36275196,2608.6,2607.9,0.19004067]
[1646441729668,0.91199187,2608.3,2608.0,0.19004067]
[1646441730001,0.69030968,2608.3,2608.1,0.19004067]
[1646441730303,0.69030968,2608.3,2608.2,0.19004067]
[1646441731105,0.69030968,2608.3,2608.1,0.00137116]
[1646441731807,0.69030968,2608.3,2608.1,0.19141183]
[1646441732007,0.69030968,2608.3,2608.2,0.19004067]
[1646441732908,11.66,2608.8,2608.2,0.19004067]
[1646441733106,1.36532753,2608.7,2608.2,0.19004067]
[1646441733307,1.36532753,2608.7,2608.3,0.19004067]
[1646441733506,1.36532753,2608.7,2608.4,0.19004067]
[1646441733768,1.36532753,2608.7,2608.5,0.19004067]
[1646441733962,1.22789522,2608.6,2608.1,0.00137435]
[1646441734161,2.2598,2608.9,2608.1,0.00137435]
[1646441734162,0.94289095,2608.2,2608.1,0.00137435]
[1646441734365,0.94289095,2608.2,2608.0,0.18592179]
[1646441734563,0.94289095,2608.2,2607.6,0.70361089]
[1646441734564,0.94289095,2608.2,2608.1,0.18592179]
[1646441734766,11.66,2608.1,2607.9,0.03229637]
[1646441734967,14.98555956,2608.0,2607.9,0.03229637]
[1646441735165,13.03313749,2608.0,2607.9,0.03229637]
[1646441735363,14.34753749,2608.0,2607.9,0.03229637]
[1646441737267,13.34753749,2608.0,2607.9,0.03229637]
[1646441737708,14.34753749,2608.0,2607.9,0.03229637]
[1646441737908,13.34753749,2608.0,2607.9,0.03229637]
[1646441738507,14.34753749,2608.0,2607.9,0.03229637]
[1646441739110,14.53923749,2608.0,2607.9,0.03229637]
[1646441739914,1.87923749,2608.0,2607.8,0.00137472]
[1646441740114,0.5061,2608.0,2607.8,0.00137472]
[1646441740321,0.5061,2608.0,2607.5,3.65465992]
[1646441740322,0.3144,2608.0,2607.5,3.65465992]
[1646441740512,7.18495571,2608.9,2607.6,0.1531643]
[1646441740711,0.3144,2608.3,2607.8,0.00137472]
[1646441740912,0.3144,2608.3,2607.8,1.34233472]
[1646441741113,2.6598,2609.4,2607.8,1.34233472]
[1646441741114,0.5061,2609.0,2608.0,0.3819]
[1646441741366,8.48147457,2609.6,2608.2,1.3406661]
[1646441741563,0.3144,2609.4,2608.3,4.0350643]
[1646441741761,1.39568188,2609.3,2608.4,1.4937743]
[1646441741962,1.39568188,2609.3,2608.6,0.3819]
[1646441742163,1.39568188,2609.3,2608.7,1.2285885]
[1646441742363,0.1915,2609.8,2608.9,4.5]
[1646441742567,0.00096,2609.9,2609.0,6.8819]
[1646441742763,0.00230467,2610.5,2609.0,6.8819]
[1646441742764,0.00230467,2610.5,2609.3,3.2819]
[1646441742964,0.69925571,2610.7,2609.6,1.3401]
[1646441743161,0.69925571,2610.7,2609.7,0.3819]
[1646441743162,0.0915,2610.6,2609.7,0.3819]
[1646441743367,0.0915,2610.6,2610.2,0.90042079]
[1646441743368,0.1915,2610.6,2610.2,0.90042079]
[1646441743565,4.02633614,2610.8,2610.2,1.85855779]
[1646441743566,0.1915,2610.7,2610.2,1.85855779]
[1646441743765,0.1915,2610.7,2610.2,0.958137]
[1646441743967,0.89075571,2610.7,2609.8,1.0]
[1646441744167,11.66,2610.5,2609.5,0.2448]
[1646441744366,11.8515,2610.4,2609.5,0.2448]
[1646441744566,12.35925571,2610.4,2609.5,0.2448]
[1646441744867,1.1254531,2610.1,2609.5,1.11749181]
[1646441746311,11.66,2610.2,2609.5,1.11749181]
[1646441746509,11.66096,2610.2,2609.5,1.11749181]
[1646441746909,0.00096,2610.2,2609.5,1.11749181]
[1646441747109,0.69925571,2610.3,2609.5,1.11749181]
[1646441747110,0.70021571,2610.3,2609.5,1.11749181]
[1646441747310,0.70021571,2610.3,2609.5,2.07596181]
[1646441747311,11.66,2610.2,2609.5,2.07596181]
[1646441747713,11.66,2610.2,2609.5,1.11749181]
[1646441747911,11.66,2610.2,2609.6,0.09585]
[1646441748112,11.66,2610.2,2609.5,1.11749181]
[1646441748312,1.03595616,2610.0,2609.5,1.11749181]
[1646441748513,1.03595616,2610.0,2609.5,0.2448]
[1646441748762,11.66,2609.9,2608.7,1.0]
[1646441748969,0.3,2609.0,2608.7,1.0]
[1646441749168,0.3,2609.0,2607.9,0.70211527]
[1646441749366,11.66,2609.0,2608.4,0.00158878]
[1646441749565,4.2532,2609.1,2608.5,1.06266796]
[1646441749566,1.79140137,2609.1,2608.5,1.06266796]
[1646441749766,1.79140137,2609.1,2608.4,0.00158878]
[1646441750371,13.21850137,2609.1,2608.4,0.0013218]
[1646441750670,13.65731137,2609.1,2608.4,0.0013218]
[1646441750867,0.9583647,2608.6,2608.4,0.0013218]
[1646441751068,15.16,2608.5,2608.4,0.0013218]
[1646441751271,15.16,2608.5,2607.7,0.1915]
[1646441751272,0.00233665,2608.2,2607.7,0.1915]
[1646441751468,0.00233665,2608.2,2607.5,0.00149562]
[1646441752268,0.00233665,2608.2,2607.7,1.07779893]
[1646441752512,1.06130064,2608.2,2607.7,1.07779893]
[1646441752702,1.06130064,2608.2,2607.7,0.00132212]
[1646441753708,1.06130064,2608.2,2607.5,0.00149562]
[1646441753910,1.06130064,2608.2,2607.8,0.00138546]
[1646441755008,1.06130064,2608.2,2607.9,0.00138544]
[1646441756010,1.06130064,2608.2,2607.5,0.00149562]
[1646441756456,1.06130064,2608.2,2607.9,0.00138541]
[1646441757255,1.06130064,2608.2,2607.5,0.00149562]
[1646441757459,1.06130064,2608.2,2607.9,0.00136784]
[1646441758260,0.00233665,2608.2,2607.9,0.00136784]
[1646441758563,0.00233665,2608.2,2607.5,0.00149562]
[1646441758761,0.00233665,2608.2,2607.9,0.00136784]
[1646441759164,0.96668943,2608.2,2607.9,0.00136784]
[1646441759563,0.96668943,2608.2,2608.0,0.01759367]
[1646441760014,0.00233665,2608.2,2608.0,0.01759367]
[1646441761006,1.15035183,2608.2,2608.0,0.01759367]
[1646441761208,1.15035183,2608.2,2608.0,0.01896544]
[1646441762011,1.15035183,2608.2,2608.0,0.01759367]
[1646441762212,1.15035183,2608.2,2608.0,0.01896544]
[1646441762410,1.36771533,2608.1,2608.0,0.01896544]
[1646441762612,19.18734,2610.2,2608.2,2.9]
[1646441762813,19.18734,2610.2,2609.5,0.01229405]
[1646441762814,0.92874565,2609.8,2609.5,0.01229405]
[1646441763016,0.69672169,2610.2,2609.7,0.01262096]
[1646441763217,0.93127633,2610.5,2609.7,0.01262096]
[1646441763218,0.69925237,2610.5,2609.8,0.3832]
[1646441763414,0.69925237,2610.5,2609.9,3.5]
[1646441763415,1.19047279,2610.1,2609.9,3.5]
[1646441763616,0.00253068,2610.5,2609.6,2.81288124]
[1646441763617,0.89352781,2610.3,2609.6,2.81288124]
[1646441763872,0.89352781,2610.3,2608.9,0.01200228]
[1646441763873,0.7539661,2610.2,2608.9,0.01200228]
[1646441764068,0.7539661,2610.2,2608.7,3.8557]
[1646441764069,0.7539661,2610.2,2609.4,1.0]
[1646441764269,0.1915,2610.1,2609.1,1.9172508]
[1646441764468,0.1915,2610.1,2609.3,1.91749]
[1646441764668,0.1915,2610.1,2609.3,2.01336]
[1646441764869,0.94936891,2609.8,2609.1,1.0]
[1646441765170,1.33256891,2609.8,2608.8,1.0]
[1646441765370,2.0292906,2609.8,2608.4,3.10964]
[1646441765569,2.0292906,2609.8,2608.4,1.0]
[1646441765570,0.3832,2609.6,2608.4,1.0]
[1646441765772,1.13326328,2608.6,2608.4,1.0]
[1646441765974,1.13326328,2608.6,2608.4,0.00137067]
[1646441766771,0.3737,2608.7,2608.4,0.00137067]
[1646441766974,1.82358169,2609.6,2608.1,0.01984929]
[1646441767170,0.3832,2609.5,2608.2,0.20359263]
[1646441767371,0.3832,2609.5,2608.4,0.00137067]
[1646441767612,0.3832,2609.5,2608.5,0.1915]
[1646441767912,1.02014514,2608.9,2608.5,0.1915]
[1646441768113,1.02014514,2608.9,2608.5,2.10956]
[1646441768415,1.02014514,2608.9,2608.5,1.91806]
[1646441768812,1.02014514,2608.9,2608.4,0.96056087]
[1646441769045,1.02014514,2608.9,2608.4,0.00137087]
[1646441769412,1.02014514,2608.9,2608.3,1.91829]
[1646441769816,1.01422326,2608.5,2608.4,0.00137087]
[1646441770716,11.66,2609.0,2608.3,1.91829]
[1646441770919,11.66,2609.0,2608.3,1.91966089]
[1646441771758,11.8515,2609.1,2608.3,1.91966089]
[1646441771958,0.5747,2609.1,2608.4,0.00137083]
[1646441772159,0.00096,2609.4,2608.4,0.00137083]
[1646441772360,0.00096,2609.4,2608.4,1.91925083]
[1646441772757,0.69672169,2609.7,2608.4,1.91925083]
[1646441772758,0.00096,2609.6,2608.4,1.91925083]
[1646441772957,1.10827088,2609.4,2608.7,0.93887793]
[1646441773159,1.10827088,2609.4,2608.8,5.178113]
[1646441773361,1.10827088,2609.4,2608.7,2.68495]
[1646441774160,1.10827088,2609.4,2608.7,4.53144719]
[1646441774361,1.10827088,2609.4,2608.9,0.38357]
[1646441774760,1.10827088,2609.4,2608.8,0.95891]
[1646441775208,12.76827088,2609.4,2608.8,0.95891]
[1646441775608,12.76827088,2609.4,2608.5,2.91815]
[1646441775609,12.76827088,2609.4,2608.5,3.68538]
[1646441775810,0.00096,2609.3,2608.5,3.68538]
[1646441776615,1.11015934,2608.8,2608.5,3.68538]
[1646441776815,1.11015934,2608.8,2608.5,2.91815]
[1646441777015,1.11015934,2608.8,2608.5,1.91815]
[1646441777415,1.11015934,2608.8,2608.5,2.30181]
[1646441778221,1.11015934,2608.8,2608.3,2.93825758]
[1646441779181,1.11015934,2608.8,2608.4,0.00167703]
[1646441779982,12.77015934,2608.8,2608.4,0.00167703]
[1646441780182,12.77015934,2608.8,2608.1,1.91837]
[1646441780382,13.84965934,2608.8,2608.1,2.8776527]
[1646441780581,13.84965934,2608.8,2608.4,0.00167703]
[1646441780983,0.00875463,2608.6,2608.4,0.00167703]
[1646441781391,0.00875463,2608.6,2608.3,0.95929]
[1646441781582,0.00875463,2608.6,2608.1,2.8776527]
[1646441781785,11.66875463,2608.6,2607.9,1.91867]
[1646441781984,11.66875463,2608.6,2608.4,0.00167703]
[1646441782713,12.05195463,2608.6,2607.6,1.92025492]
[1646441782914,12.05195463,2608.6,2607.6,2.30404492]
[1646441782915,1.00414505,2608.0,2607.6,2.30404492]
[1646441783116,0.00875463,2608.6,2607.8,0.95948]
[1646441784023,11.66,2608.4,2607.8,0.95948]
[1646441784225,4.5,2608.1,2607.8,0.91096853]
[1646441784421,1.10110427,2607.9,2607.8,0.91096853]
[1646441785826,1.10110427,2607.9,2607.6,0.00149562]
[1646441786025,1.10110427,2607.9,2607.4,0.96106562]
[1646441786026,12.76110427,2607.9,2607.4,0.96106562]
[1646441786271,12.76110427,2607.9,2607.4,0.00149562]
[1646441786459,12.76110427,2607.9,2607.2,0.00149562]
[1646441786460,11.66,2607.7,2607.2,0.00149562]
[1646441786661,11.66,2607.7,2607.1,0.76288045]
[1646441786859,11.66,2607.7,2607.2,0.76288045]
[1646441787059,11.66,2607.7,2607.3,0.76288045]
[1646441787258,0.99439928,2607.4,2607.3,0.76288045]
[1646441787460,11.66,2608.1,2607.2,0.95968]
[1646441787658,11.66,2607.9,2607.3,0.76288045]
[1646441788459,11.66,2607.7,2607.3,0.76288045]
[1646441788661,11.66,2607.7,2607.3,0.76437607]
[1646441788864,11.66,2607.7,2607.3,0.76288045]
[1646441789566,11.66,2607.5,2607.2,0.95968]
[1646441789768,11.66,2607.5,2607.3,0.76300608]
[1646441790205,1.1637964,2607.6,2607.3,0.76300608]
[1646441790406,2.9065,2608.2,2607.3,2.68208278]
[1646441790608,2.9065,2608.2,2607.4,0.76300608]
[1646441790609,0.78971341,2608.1,2607.4,0.76300608]
[1646441790806,0.78971341,2608.1,2607.4,0.7645017]
[1646441791008,0.20045463,2608.6,2607.5,3.88378]
[1646441791212,0.78986647,2608.5,2607.9,1.91834]
[1646441791409,0.78986647,2608.5,2608.0,2.68130418]
[1646441791616,0.78986647,2608.5,2608.0,2.80520633]
[1646441791814,0.00875463,2608.6,2608.0,1.9182981]
[1646441792011,0.7898816,2608.5,2608.0,1.9182981]
[1646441792215,12.4498816,2608.5,2608.0,1.9182981]
[1646441792411,0.7898816,2608.4,2608.0,3.2611581]
[1646441792615,0.7898816,2608.5,2608.1,0.00166929]
[1646441792814,0.7898816,2608.5,2608.2,0.9592123]
[1646441792815,0.9813816,2608.5,2608.2,0.9592123]
[1646441793113,0.00875463,2608.6,2608.2,0.9592123]
[1646441793114,0.7898816,2608.4,2608.2,0.9592123]
[1646441793316,0.00875463,2608.6,2608.1,1.8992581]
[1646441793514,0.77346588,2608.5,2608.2,0.78250064]
[1646441793986,0.77346588,2608.5,2608.2,1.16619064]
[1646441794187,0.77346588,2608.5,2608.3,0.78250064]
[1646441794391,0.00875463,2608.6,2608.3,0.78250064]
[1646441795186,0.00875463,2608.6,2608.3,1.74165064]
[1646441795386,0.00875463,2608.6,2608.4,0.78250064]
[1646441795585,0.00875463,2608.6,2608.4,1.74161174]
[1646441795787,0.00875463,2608.6,2608.4,0.9591111]
[1646441795986,0.00875463,2608.6,2608.5,0.78274245]
[1646441796587,0.78262158,2608.6,2608.5,1.74179245]
[1646441797809,0.00875463,2608.6,2608.5,1.74179245]
[1646441798211,0.782797,2608.6,2608.5,1.74179245]
[1646441798511,0.00875463,2608.6,2608.5,1.74179245]
[1646441800111,0.00875463,2608.6,2608.5,1.76086386]
[1646441800812,0.00875463,2608.6,2608.5,0.80181386]
[1646441801011,0.00875463,2608.6,2608.5,0.01907141]
[1646441801274,0.78302587,2608.6,2608.5,0.01907141]
[1646441802264,12.44302587,2608.6,2608.5,0.01907141]
[1646441802662,0.78302587,2608.6,2608.5,0.01907141]
[1646441803263,12.44302587,2608.6,2608.5,0.01907141]
[1646441805111,0.91726267,2608.4,2608.3,0.95926]
[1646441805308,0.77427124,2608.4,2608.3,1.74200979]
[1646441805709,0.77427124,2608.5,2608.3,1.74200979]
[1646441805909,0.77427124,2608.5,2608.3,0.95926]
[1646441812509,0.00875463,2608.6,2608.4,0.78263839]
[1646441813409,0.00875463,2608.6,2608.4,1.74168839]
[1646441813609,0.00875463,2608.6,2608.5,0.78263839]
[1646441813812,0.79131576,2608.6,2608.5,0.78263839]
[1646441815418,0.79131576,2608.6,2608.4,0.16961253]
[1646441815613,0.78256113,2608.5,2608.4,0.16961253]
[1646441815814,0.78256113,2608.5,2608.4,0.95968089]
[1646441817365,0.78256113,2608.5,2608.3,2.8773649]
[1646441817666,0.00875463,2608.6,2608.3,2.8773649]
[1646441817667,0.78256113,2608.4,2608.3,2.8773649]
[1646441818069,0.78256113,2608.4,2608.3,3.66747695]
[1646441819470,0.78256113,2608.4,2608.3,3.70614397]
[1646441820718,0.78256113,2608.4,2608.3,0.82877907]
[1646441820914,0.78256113,2608.4,2608.3,0.03866702]
[1646441820915,1.99033293,2608.4,2608.3,0.03866702]
[1646441823323,13.65033293,2608.4,2608.3,0.03866702]
[1646441824769,13.65033293,2608.4,2608.3,0.02176036]
[1646441827374,12.44256113,2608.4,2608.3,0.02176036]
[1646441827622,0.00875463,2608.6,2608.4,0.30087343]
[1646441827822,0.7703727,2608.5,2608.4,0.30087343]
[1646441828426,0.7703727,2608.5,2608.4,1.09147533]
[1646441828630,0.7703727,2608.5,2608.4,0.30087343]
[1646441829226,12.4303727,2608.5,2608.4,0.30087343]
[1646441830828,0.7703727,2608.5,2608.4,0.30087343]
[1646441831268,12.4303727,2608.5,2608.4,0.30087343]
[1646441832469,11.66,2608.3,2608.1,0.00135599]
[1646441832670,1.15176077,2608.6,2608.1,0.00135599]
[1646441832671,12.4303727,2608.2,2608.1,0.00135599]
[1646441833069,13.39826597,2608.2,2607.4,0.00149562]
[1646441833272,14.35792597,2608.2,2607.4,0.00149562]
[1646441833468,11.66,2608.0,2607.4,0.87368663]
[1646441833668,11.66,2607.8,2607.0,0.00149562]
[1646441833870,11.66,2607.6,2607.0,0.00149562]
[1646441834067,0.3832,2607.8,2606.8,0.84958742]
[1646441834068,11.66,2607.4,2606.8,0.84958742]
[1646441834280,1.08643603,2607.2,2606.8,0.84958742]
[1646441834469,1.08643603,2607.2,2606.8,0.8480918]
[1646441835115,1.08643603,2607.2,2607.0,0.95971]
[1646441835316,11.66,2607.4,2607.2,0.08996746]
[1646441835516,0.71271845,2607.3,2607.2,0.08996746]
[1646441835917,0.71271845,2607.3,2607.2,0.91720882]
[1646441836115,1.63048463,2607.3,2607.2,0.91720882]
[1646441836520,0.91776618,2607.3,2607.2,0.91720882]
[1646441837217,11.66,2607.4,2607.2,0.91720882]
[1646441837418,11.66,2607.4,2607.3,0.82627691]
[1646441837617,12.39185101,2607.4,2607.3,0.82626591]
[1646441837817,12.39185101,2607.4,2607.2,0.08996746]
[1646441838018,0.89022839,2608.0,2607.2,0.08996746]
[1646441838221,0.73201147,2607.9,2607.3,0.82626499]
[1646441838418,0.73201147,2607.9,2607.4,1.38860213]
[1646441838619,0.73201147,2607.9,2607.5,0.82626499]
[1646441839073,0.73201147,2607.9,2607.6,0.82626499]
[1646441839368,0.73201147,2607.9,2607.5,0.95941]
[1646441839571,0.73201147,2607.9,2607.6,0.8261473]
[1646441839773,0.73201147,2607.9,2607.5,0.95941]
[1646441841472,0.89473395,2607.6,2607.4,1.91881]
[1646441841676,0.89473395,2607.6,2607.5,0.82593796]
[1646441841973,0.73234249,2607.6,2607.4,1.91881]
[1646441842271,11.66,2608.0,2607.4,1.91881]
[1646441842508,12.39234813,2607.9,2607.4,1.92030562]
[1646441842709,0.73234813,2607.8,2607.4,1.91881]
[1646441843012,12.39234813,2607.8,2607.3,0.00149562]
[1646441843215,1.08172839,2608.1,2607.6,0.0016588]
[1646441843216,12.39234813,2607.7,2607.6,0.0016588]
[1646441844015,13.50751613,2607.7,2607.6,0.0016588]
[1646441844222,11.66,2607.6,2607.2,0.08996746]
[1646441844418,11.66,2607.6,2607.5,0.00165884]
[1646441844619,12.39246628,2607.6,2607.5,0.00165884]
[1646441845320,12.39246628,2607.6,2607.2,0.08996746]
[1646441845518,12.39246628,2607.5,2607.2,0.08996746]
[1646441845720,0.73246628,2607.4,2607.2,0.08996746]
[1646441845920,1.05050648,2607.3,2607.2,0.08996746]
[1646441846120,1.78297276,2607.3,2607.2,0.08996746]
[1646441847369,0.73246628,2607.3,2607.2,0.08996746]
[1646441847572,11.8517,2607.9,2607.2,1.8749654]
[1646441847771,0.73230148,2607.8,2607.4,0.95953]
[1646441848573,1.70894151,2607.8,2607.4,0.95953]
[1646441848773,0.73230148,2607.7,2607.4,0.95953]
[1646441849172,0.73230148,2607.7,2607.5,0.00147224]
[1646441849475,0.73230148,2607.7,2607.5,0.50147224]
[1646441849673,0.73230148,2607.7,2607.5,0.00147224]
[1646441850116,0.73230148,2607.7,2607.4,0.95953]
[1646441850315,0.73230148,2607.7,2607.5,0.00149324]
[1646441850718,0.73230148,2607.7,2607.5,0.0210847]
[1646441851116,11.66,2607.6,2607.5,0.0210847]
[1646441851319,12.39230148,2607.6,2607.5,0.01959146]
[1646441851517,12.39230148,2607.6,2607.5,0.0210847]
[1646441852619,12.39230148,2607.6,2607.5,0.01959146]
[1646441854585,0.73230148,2607.6,2607.5,0.01959146]
[1646441854783,12.39230148,2607.6,2607.5,0.01959146]
[1646441855382,12.39230148,2607.6,2607.2,0.09144649]
[1646441855383,4.5,2607.5,2607.2,0.09144649]
[1646441855582,0.73230148,2607.4,2607.2,0.08996746]
[1646441855984,12.39230148,2607.4,2607.2,0.08996746]
[1646441856185,1.90179373,2607.3,2607.2,0.08996746]
[1646441856683,1.16949225,2607.3,2607.2,0.08996746]
[1646441856884,1.90055917,2607.3,2607.2,0.08996746]
[1646441858316,13.56055917,2607.3,2607.2,0.08996746]
[1646441858718,11.66,2607.1,2606.6,0.00147903]
[1646441858920,12.39106692,2607.0,2606.4,1.34007903]
[1646441859122,1.69121122,2606.9,2606.4,0.00147903]
[1646441859420,1.69121122,2606.9,2606.2,0.00147903]
[1646441859421,11.66,2606.6,2606.2,0.00147903]
[1646441859623,0.97688842,2606.7,2606.0,0.00147903]
[1646441859624,11.66,2606.4,2606.0,0.00147903]
[1646441859819,13.36657384,2606.3,2605.6,0.77475835]
[1646441860020,0.93897521,2605.9,2605.7,0.00147903]
[1646441860219,0.93897521,2605.9,2605.6,0.77327932]
[1646441860420,0.93897521,2605.9,2605.5,0.00147903]
[1646441860620,0.93897521,2605.9,2605.5,0.7733596]
[1646441861666,0.93897521,2605.9,2605.6,0.7733596]
[1646441861865,0.93897521,2605.9,2605.3,0.00147903]
[1646441862065,0.93897521,2605.9,2605.3,0.77520009]
[1646441864173,0.93897521,2605.9,2605.4,0.96022]
[1646441864672,13.66,2606.1,2605.4,0.96022]
[1646441864673,2.0,2606.1,2605.4,0.96022]
[1646441864877,2.0,2606.1,2605.5,0.00165305]
[1646441865121,2.0,2606.1,2605.5,0.38573305]
[1646441865320,2.0,2606.1,2605.5,1.15550646]
[1646441865521,2.0,2606.1,2605.5,0.38573305]
[1646441865722,0.91910908,2606.0,2605.5,1.34413]
[1646441865922,0.91910908,2606.0,2605.7,0.38532102]
[1646441866923,12.57910908,2606.0,2605.6,0.9813017]
[1646441867130,12.57910908,2606.0,2605.7,0.00128099]
[1646441867528,11.66,2605.8,2605.7,0.00128099]
[1646441868123,11.66,2605.8,2605.6,0.021267]
[1646441868328,12.62043,2605.8,2605.6,0.021267]
[1646441868526,12.62043,2605.8,2605.6,0.02254804]
[1646441869365,12.62043,2605.8,2605.6,0.021267]
[1646441869566,11.66,2605.7,2605.6,0.021267]
[1646441869766,11.65583791,2605.7,2605.6,0.02254807]
[1646441870569,12.63140635,2605.7,2605.6,0.021267]
[1646441872816,12.57285682,2604.7,2604.1,0.3829]
[1646441873012,1.20215799,2604.3,2604.1,0.3829]
[1646441873209,11.65583791,2604.7,2604.1,0.3829]
[1646441873413,12.61675791,2604.4,2604.1,0.3829]
[1646441874413,11.65583791,2604.2,2604.1,0.38426374]
[1646441874614,12.61683791,2604.2,2604.1,0.38426374]
[1646441874817,1.10446796,2604.3,2604.1,0.38426374]
[1646441874818,12.76446796,2604.3,2604.1,0.38426374]
[1646441875214,11.66,2604.3,2604.1,0.3829]
[1646441875719,1.2463,2605.6,2604.4,1.68010528]
[1646441875914,1.2463,2605.6,2604.5,3.5]
[1646441876113,1.2463,2605.6,2604.5,3.50147903]
[1646441876359,1.2463,2605.6,2604.9,1.14886119]
[1646441876558,2.559,2605.8,2604.9,0.00147903]
[1646441876559,1.0,2605.8,2604.9,0.00147903]
[1646441876758,1.0,2605.8,2605.7,0.0262448]
[1646441876958,12.4408289,2605.8,2605.7,0.0262448]
[1646441877762,12.8240289,2605.8,2604.9,0.00136332]
[1646441877966,12.8240289,2605.8,2604.6,0.00147903]
[1646441877967,12.0432,2605.6,2604.6,0.00147903]
[1646441878164,11.66,2605.4,2604.8,0.00537315]
[1646441878366,12.66,2604.9,2604.8,0.00537315]
[1646441878764,13.5338627,2604.9,2604.8,0.00537315]
[1646441878961,13.5338627,2604.9,2604.6,0.00147903]
[1646441879163,1.19192406,2604.5,2604.2,0.00147903]
[1646441879362,1.19192406,2604.5,2604.3,0.00537419]
[1646441879561,13.00397,2604.9,2604.3,0.00537419]
[1646441879764,12.62077,2604.9,2604.3,0.00537419]
[1646441880411,13.62077,2604.9,2604.2,0.00147903]